[Event "*** Titled Tuesday Blitz"]
[Site "Chess.com"]
[Date "2020.04.21"]
[Round "3"]
[White "mbachez"]
[Black "Zubrrr"]
[Result "0-1"]
[WhiteElo "2430"]
[BlackElo "2680"]
[TimeControl "180+1"]
[EndTime "10:28:35 PDT"]
[Termination "Zubrrr won by resignation"]

1. e4 {[%clk 0:03:00.9]} 1... c5 {[%clk 0:02:59.9]} 2. Nf3 {[%clk 0:03:00.6]}
2... d6 {[%clk 0:03:00.3]} 3. Bc4 {[%clk 0:03:00.1]} 3... Nf6 {[%clk 0:03:00.3]}
4. Qe2 {[%clk 0:03:00.4]} 4... e6 {[%clk 0:02:59.8]} 5. c3 {[%clk 0:02:59.3]}
5... Nc6 {[%clk 0:02:56.9]} 6. Bb3 {[%clk 0:02:59.2]} 6... Be7 {[%clk
0:02:50.2]} 7. O-O {[%clk 0:02:58.8]} 7... O-O {[%clk 0:02:49.8]} 8. d4 {[%clk
0:02:58.6]} 8... d5 {[%clk 0:02:49.8]} 9. e5 {[%clk 0:02:58.2]} 9... Ne4 {[%clk
0:02:36.2]} 10. Nbd2 {[%clk 0:02:57.9]} 10... f5 {[%clk 0:02:30.1]} 11. exf6
{[%clk 0:02:57.3]} 11... Nxf6 {[%clk 0:02:29.9]} 12. Re1 {[%clk 0:02:57.1]}
12... Qb6 {[%clk 0:02:25.9]} 13. Ng5 {[%clk 0:02:34.8]} 13... cxd4 {[%clk
0:02:21.2]} 14. Nxe6 {[%clk 0:02:34.4]} 14... Bxe6 {[%clk 0:02:20.9]} 15. Qxe6+
{[%clk 0:02:33.8]} 15... Kh8 {[%clk 0:02:21.3]} 16. Nf3 {[%clk 0:02:30.4]} 16...
Rae8 {[%clk 0:02:05.6]} 17. Qh3 {[%clk 0:02:09.1]} 17... Bc5 {[%clk 0:01:59.2]}
18. Rxe8 {[%clk 0:02:06.3]} 18... Rxe8 {[%clk 0:01:59.1]} 19. Bg5 {[%clk
0:02:01.7]} 19... dxc3 {[%clk 0:01:45.6]} 20. Bxf6 {[%clk 0:02:00.3]} 20... gxf6
{[%clk 0:01:46.3]} 21. Bc2 {[%clk 0:02:00]} 21... Bxf2+ {[%clk 0:01:31.4]} 22.
Kh1 {[%clk 0:01:57.2]} 22... Qc7 {[%clk 0:01:24.3]} 23. bxc3 {[%clk 0:01:54.4]}
23... Qg7 {[%clk 0:00:22.9]} 24. Rf1 {[%clk 0:01:48.2]} 24... Bc5 {[%clk
0:00:20.9]} 25. Nh4 {[%clk 0:01:42.6]} 25... Ne7 {[%clk 0:00:20.7]} 26. Re1
{[%clk 0:01:41.9]} 26... Rg8 {[%clk 0:00:18.1]} 27. Qd3 {[%clk 0:01:05.5]} 27...
Bf2 {[%clk 0:00:16.4]} 28. Rxe7 {[%clk 0:00:43.3]} 28... Qxe7 {[%clk 0:00:17.3]}
29. Nf3 {[%clk 0:00:43.4]} 29... Rg7 {[%clk 0:00:14.7]} 30. g3 {[%clk
0:00:43.4]} 30... Qe4 {[%clk 0:00:13.4]} 31. Qd1 {[%clk 0:00:42.9]} 31... Qe6
{[%clk 0:00:11.8]} 32. Kg2 {[%clk 0:00:42.8]} 32... Bb6 {[%clk 0:00:11.8]} 33.
Qd3 {[%clk 0:00:42.1]} 33... Re7 {[%clk 0:00:11.2]} 34. Nh4 {[%clk 0:00:39.4]}
34... Qe2+ {[%clk 0:00:11.1]} 35. Kh3 {[%clk 0:00:38.9]} 35... Qxd3 {[%clk
0:00:11.4]} 36. Bxd3 {[%clk 0:00:39.2]} 36... Re3 {[%clk 0:00:12.2]} 37. Bf5
{[%clk 0:00:38.5]} 37... Rxc3 {[%clk 0:00:12.5]} 38. Kg4 {[%clk 0:00:38.9]}
38... d4 {[%clk 0:00:11.7]} 39. Kh5 {[%clk 0:00:39.8]} 39... d3 {[%clk
0:00:11.9]} 40. Kh6 {[%clk 0:00:40.7]} 40... Be3+ {[%clk 0:00:11.2]} 41. Kh5
{[%clk 0:00:40.6]} 41... d2 {[%clk 0:00:11.8]} 42. Bg4 {[%clk 0:00:41.3]} 42...
Rc5+ {[%clk 0:00:11.6]} 43. Nf5 {[%clk 0:00:42.2]} 43... Rxf5+ {[%clk
0:00:11.8]} 44. Bxf5 {[%clk 0:00:41.4]} 44... d1=Q+ {[%clk 0:00:12]} 45. Bg4
{[%clk 0:00:42.3]} 45... Qd2 {[%clk 0:00:12.5]} 46. Kh4 {[%clk 0:00:43.2]} 46...
Qxh2+ {[%clk 0:00:12.6]} 47. Bh3 {[%clk 0:00:42.8]} 0-1

[Event "*** Titled Tuesday Blitz"]
[Site "Chess.com"]
[Date "2020.04.21"]
[Round "3"]
[White "GulamaliRises"]
[Black "JonahWillow"]
[Result "1-0"]
[WhiteElo "2573"]
[BlackElo "2755"]
[TimeControl "180+1"]
[EndTime "10:28:37 PDT"]
[Termination "GulamaliRises won on time"]

1. e4 {[%clk 0:02:56.5]} 1... c5 {[%clk 0:02:59.4]} 2. Nf3 {[%clk 0:02:56.5]}
2... Nc6 {[%clk 0:02:58.3]} 3. d4 {[%clk 0:02:51.9]} 3... cxd4 {[%clk
0:02:59.2]} 4. Nxd4 {[%clk 0:02:52.5]} 4... g6 {[%clk 0:02:56]} 5. Nc3 {[%clk
0:02:49.1]} 5... Bg7 {[%clk 0:02:54.1]} 6. Nde2 {[%clk 0:02:49.1]} 6... d6
{[%clk 0:02:52.8]} 7. g3 {[%clk 0:02:49.1]} 7... Nf6 {[%clk 0:02:51.8]} 8. Bg2
{[%clk 0:02:49.2]} 8... O-O {[%clk 0:02:52.5]} 9. O-O {[%clk 0:02:49.3]} 9...
Be6 {[%clk 0:02:51.3]} 10. a4 {[%clk 0:02:43.4]} 10... Rc8 {[%clk 0:02:49.7]}
11. Nd5 {[%clk 0:02:42.5]} 11... Bxd5 {[%clk 0:02:46]} 12. exd5 {[%clk
0:02:43.4]} 12... Ne5 {[%clk 0:02:46.8]} 13. c3 {[%clk 0:02:07.6]} 13... a6
{[%clk 0:02:27.2]} 14. Nd4 {[%clk 0:02:02.2]} 14... Nc4 {[%clk 0:02:07.3]} 15.
b3 {[%clk 0:01:43.8]} 15... Ne5 {[%clk 0:01:51.6]} 16. c4 {[%clk 0:01:39.1]}
16... Ned7 {[%clk 0:01:23.1]} 17. a5 {[%clk 0:01:35.6]} 17... Nc5 {[%clk
0:01:21]} 18. Re1 {[%clk 0:01:31.3]} 18... Re8 {[%clk 0:01:20.4]} 19. Bb2 {[%clk
0:01:08.7]} 19... Nh5 {[%clk 0:00:58]} 20. b4 {[%clk 0:01:03]} 20... Nd7 {[%clk
0:00:55]} 21. Qb3 {[%clk 0:01:01.3]} 21... Qc7 {[%clk 0:00:52.9]} 22. Rac1
{[%clk 0:01:01.1]} 22... Ne5 {[%clk 0:00:47.4]} 23. Bf1 {[%clk 0:01:00.7]} 23...
Qb8 {[%clk 0:00:42.7]} 24. c5 {[%clk 0:00:53.1]} 24... Qa7 {[%clk 0:00:33.3]}
25. c6 {[%clk 0:00:50.4]} 25... bxc6 {[%clk 0:00:34.2]} 26. dxc6 {[%clk
0:00:49.8]} 26... Rc7 {[%clk 0:00:29.9]} 27. Bg2 {[%clk 0:00:28.7]} 27... Rb8
{[%clk 0:00:25.6]} 28. Qc3 {[%clk 0:00:22.8]} 28... Nf6 {[%clk 0:00:21.7]} 29.
h3 {[%clk 0:00:19.8]} 29... g5 {[%clk 0:00:15.2]} 30. Nf5 {[%clk 0:00:18.8]}
30... Bh8 {[%clk 0:00:14.6]} 31. Qd4 {[%clk 0:00:16.7]} 31... Qxd4 {[%clk
0:00:13.7]} 32. Bxd4 {[%clk 0:00:17.6]} 32... Rxb4 {[%clk 0:00:14.2]} 33. Bb6
{[%clk 0:00:17.9]} 33... Rxc6 {[%clk 0:00:03.8]} 34. Nxe7+ {[%clk 0:00:18.1]}
34... Kf8 {[%clk 0:00:03.4]} 35. Nxc6 {[%clk 0:00:19]} 35... Nxc6 {[%clk
0:00:02.6]} 36. Rxc6 {[%clk 0:00:19.6]} 36... g4 {[%clk 0:00:02.3]} 37. h4
{[%clk 0:00:18.4]} 1-0

[Event "*** Titled Tuesday Blitz"]
[Site "Chess.com"]
[Date "2020.04.21"]
[Round "3"]
[White "ElGasanov"]
[Black "TheRigos"]
[Result "1-0"]
[WhiteElo "2748"]
[BlackElo "2521"]
[TimeControl "180+1"]
[EndTime "10:28:40 PDT"]
[Termination "ElGasanov won on time"]

1. Nf3 {[%clk 0:03:00.9]} 1... Nf6 {[%clk 0:02:59.5]} 2. d4 {[%clk 0:02:58.6]}
2... g6 {[%clk 0:02:58.9]} 3. Bg5 {[%clk 0:02:58]} 3... Bg7 {[%clk 0:02:57.9]}
4. e3 {[%clk 0:02:58.4]} 4... O-O {[%clk 0:02:58]} 5. Be2 {[%clk 0:02:58.9]}
5... d6 {[%clk 0:02:56.9]} 6. c4 {[%clk 0:02:58.3]} 6... Nbd7 {[%clk 0:02:56.5]}
7. Nc3 {[%clk 0:02:58.7]} 7... e5 {[%clk 0:02:54.7]} 8. Qc2 {[%clk 0:02:56.7]}
8... h6 {[%clk 0:02:52]} 9. Bh4 {[%clk 0:02:56.5]} 9... c6 {[%clk 0:02:50.1]}
10. Rd1 {[%clk 0:02:53.6]} 10... Qe7 {[%clk 0:02:49.6]} 11. O-O {[%clk
0:02:52.9]} 11... Re8 {[%clk 0:02:48.3]} 12. h3 {[%clk 0:02:45.8]} 12... Nf8
{[%clk 0:02:35.4]} 13. c5 {[%clk 0:02:31.3]} 13... e4 {[%clk 0:02:05.5]} 14.
Bxf6 {[%clk 0:02:23.4]} 14... Bxf6 {[%clk 0:01:27.5]} 15. cxd6 {[%clk
0:02:23.3]} 15... Qxd6 {[%clk 0:00:53.6]} 16. Nxe4 {[%clk 0:02:22.7]} 16... Qd8
{[%clk 0:00:50.1]} 17. Nxf6+ {[%clk 0:02:03.6]} 17... Qxf6 {[%clk 0:00:51]} 18.
Ne5 {[%clk 0:02:00.4]} 18... Be6 {[%clk 0:00:35.1]} 19. Bc4 {[%clk 0:01:59.8]}
19... Rad8 {[%clk 0:00:33.8]} 20. Qb3 {[%clk 0:01:55]} 20... b5 {[%clk
0:00:28.9]} 21. Bxe6 {[%clk 0:01:54.6]} 21... Rxe6 {[%clk 0:00:29.6]} 22. Rc1
{[%clk 0:01:45]} 22... Nd7 {[%clk 0:00:24.4]} 23. Nd3 {[%clk 0:01:28.4]} 23...
Nb6 {[%clk 0:00:18.8]} 24. Qa3 {[%clk 0:01:17]} 24... Re7 {[%clk 0:00:16.7]} 25.
Rxc6 {[%clk 0:01:13.1]} 25... Qxc6 {[%clk 0:00:13.2]} 26. Qxe7 {[%clk
0:01:13.7]} 26... Re8 {[%clk 0:00:09.3]} 27. Qxa7 {[%clk 0:01:09.9]} 27... Ra8
{[%clk 0:00:06.4]} 28. Qe7 {[%clk 0:01:06.1]} 28... Qc2 {[%clk 0:00:05.3]} 29.
Ne5 {[%clk 0:01:02.7]} 29... Rf8 {[%clk 0:00:05.2]} 30. Qc5 {[%clk 0:00:58.7]}
30... Qxc5 {[%clk 0:00:02.8]} 31. dxc5 {[%clk 0:00:58.6]} 31... Na4 {[%clk
0:00:03.7]} 32. b4 {[%clk 0:00:53.5]} 32... Nc3 {[%clk 0:00:02.7]} 33. c6 {[%clk
0:00:48.2]} 33... Nxa2 {[%clk 0:00:02]} 34. c7 {[%clk 0:00:36.7]} 34... Nxb4
{[%clk 0:00:02.7]} 35. Rd1 {[%clk 0:00:22.8]} 35... Rc8 {[%clk 0:00:03.6]} 36.
Rd8+ {[%clk 0:00:22.3]} 1-0

[Event "*** Titled Tuesday Blitz"]
[Site "Chess.com"]
[Date "2020.04.21"]
[Round "3"]
[White "ItsCheckM8Mate"]
[Black "m_ezat"]
[Result "1-0"]
[WhiteElo "2247"]
[BlackElo "2508"]
[TimeControl "180+1"]
[EndTime "10:28:40 PDT"]
[Termination "ItsCheckM8Mate won by checkmate"]

1. e4 {[%clk 0:03:00.9]} 1... c6 {[%clk 0:02:59.4]} 2. d4 {[%clk 0:03:00.6]}
2... d5 {[%clk 0:02:59.4]} 3. exd5 {[%clk 0:03:00.4]} 3... cxd5 {[%clk
0:02:59.5]} 4. c4 {[%clk 0:03:00.2]} 4... Nf6 {[%clk 0:02:58.9]} 5. Nc3 {[%clk
0:02:59.9]} 5... g6 {[%clk 0:02:57.8]} 6. Nf3 {[%clk 0:02:54.1]} 6... Bg7 {[%clk
0:02:58]} 7. h3 {[%clk 0:02:50.8]} 7... O-O {[%clk 0:02:58.2]} 8. c5 {[%clk
0:02:50.1]} 8... Ne4 {[%clk 0:02:57.6]} 9. Bd3 {[%clk 0:02:46.1]} 9... Bf5
{[%clk 0:02:56.6]} 10. O-O {[%clk 0:02:43.2]} 10... Nc6 {[%clk 0:02:56.7]} 11.
Be3 {[%clk 0:02:10.4]} 11... b6 {[%clk 0:02:53.2]} 12. Bb5 {[%clk 0:01:52]}
12... Nxc3 {[%clk 0:02:37]} 13. bxc3 {[%clk 0:01:51]} 13... Bd7 {[%clk
0:02:37.4]} 14. cxb6 {[%clk 0:01:29.3]} 14... axb6 {[%clk 0:02:35.4]} 15. Qd2
{[%clk 0:01:22.5]} 15... Na5 {[%clk 0:02:17]} 16. Bd3 {[%clk 0:01:20.7]} 16...
Qc7 {[%clk 0:02:08.6]} 17. Bh6 {[%clk 0:01:17.9]} 17... Rfc8 {[%clk 0:02:03.4]}
18. Bxg7 {[%clk 0:01:13]} 18... Kxg7 {[%clk 0:02:02.9]} 19. Ne5 {[%clk
0:01:11.5]} 19... Be8 {[%clk 0:01:34.6]} 20. Rac1 {[%clk 0:01:04.1]} 20... Bd7
{[%clk 0:00:35.7]} 21. Rfe1 {[%clk 0:01:01]} 21... f6 {[%clk 0:00:33.2]} 22.
Nxg6 {[%clk 0:00:45]} 22... e5 {[%clk 0:00:27.7]} 23. Ne7 {[%clk 0:00:24.5]}
23... e4 {[%clk 0:00:18.1]} 24. Nxd5 {[%clk 0:00:23.4]} 24... Qd6 {[%clk
0:00:16.6]} 25. Bxe4 {[%clk 0:00:22.4]} 25... Bc6 {[%clk 0:00:16.2]} 26. Ne7
{[%clk 0:00:12.7]} 26... Bxe4 {[%clk 0:00:13.3]} 27. Rxe4 {[%clk 0:00:12]} 27...
Kh8 {[%clk 0:00:09.8]} 28. Qh6 {[%clk 0:00:10.6]} 28... Rg8 {[%clk 0:00:07.3]}
29. Nf5 {[%clk 0:00:08]} 29... Qd5 {[%clk 0:00:06.2]} 30. Qxf6+ {[%clk
0:00:07.7]} 30... Rg7 {[%clk 0:00:06.9]} 31. Qxg7# {[%clk 0:00:07.6]} 1-0

[Event "*** Titled Tuesday Blitz"]
[Site "Chess.com"]
[Date "2020.04.21"]
[Round "3"]
[White "YPradafah"]
[Black "wadsy27"]
[Result "1-0"]
[WhiteElo "2518"]
[BlackElo "2478"]
[TimeControl "180+1"]
[EndTime "10:28:40 PDT"]
[Termination "YPradafah won by resignation"]

1. d4 {[%clk 0:03:00.9]} 1... Nf6 {[%clk 0:02:59.4]} 2. Nc3 {[%clk 0:02:57]}
2... c5 {[%clk 0:02:54.2]} 3. d5 {[%clk 0:02:55]} 3... e6 {[%clk 0:02:54.3]} 4.
e4 {[%clk 0:02:55.3]} 4... exd5 {[%clk 0:02:52.1]} 5. exd5 {[%clk 0:02:56.2]}
5... d6 {[%clk 0:02:52.3]} 6. Be2 {[%clk 0:02:54.8]} 6... Be7 {[%clk 0:02:52.2]}
7. Nf3 {[%clk 0:02:54.7]} 7... O-O {[%clk 0:02:52.6]} 8. Nd2 {[%clk 0:02:52.1]}
8... Na6 {[%clk 0:02:50.8]} 9. Nc4 {[%clk 0:02:50.2]} 9... Nc7 {[%clk
0:02:51.2]} 10. a4 {[%clk 0:02:50.5]} 10... b6 {[%clk 0:02:51]} 11. O-O {[%clk
0:02:46.1]} 11... Rb8 {[%clk 0:02:47.9]} 12. Ne3 {[%clk 0:02:43.9]} 12... a6
{[%clk 0:02:40.8]} 13. b3 {[%clk 0:02:32.5]} 13... Qd7 {[%clk 0:02:21.3]} 14.
Re1 {[%clk 0:02:06.8]} 14... b5 {[%clk 0:02:06.8]} 15. Bb2 {[%clk 0:01:55.7]}
15... Bb7 {[%clk 0:01:52.2]} 16. Bf3 {[%clk 0:01:52.1]} 16... Rfe8 {[%clk
0:01:48.1]} 17. Ne2 {[%clk 0:01:27.8]} 17... b4 {[%clk 0:01:30.9]} 18. Ng3
{[%clk 0:01:22]} 18... g6 {[%clk 0:01:22.2]} 19. Qd2 {[%clk 0:01:18.3]} 19...
Bd8 {[%clk 0:01:09.7]} 20. Rad1 {[%clk 0:01:11.9]} 20... a5 {[%clk 0:01:09.5]}
21. h3 {[%clk 0:01:04.8]} 21... Ba6 {[%clk 0:01:04.2]} 22. Ng4 {[%clk
0:00:56.5]} 22... Nxg4 {[%clk 0:01:02.6]} 23. hxg4 {[%clk 0:00:50.1]} 23...
Rxe1+ {[%clk 0:00:59.1]} 24. Rxe1 {[%clk 0:00:51]} 24... Ne8 {[%clk 0:00:54.7]}
25. Qf4 {[%clk 0:00:47.1]} 25... Bh4 {[%clk 0:00:45.1]} 26. Ne4 {[%clk
0:00:34.2]} 26... Be7 {[%clk 0:00:27]} 27. g3 {[%clk 0:00:33.2]} 27... Qd8
{[%clk 0:00:25.3]} 28. Kg2 {[%clk 0:00:30.7]} 28... Rc8 {[%clk 0:00:24.5]} 29.
Rh1 {[%clk 0:00:30.1]} 29... Bf8 {[%clk 0:00:21.6]} 30. g5 {[%clk 0:00:24.5]}
30... c4 {[%clk 0:00:16.3]} 31. Nf6+ {[%clk 0:00:07.9]} 31... Nxf6 {[%clk
0:00:16.1]} 32. Bxf6 {[%clk 0:00:08.8]} 32... Qe8 {[%clk 0:00:14.2]} 33. Rxh7
{[%clk 0:00:08.8]} 1-0

[Event "*** Titled Tuesday Blitz"]
[Site "Chess.com"]
[Date "2020.04.21"]
[Round "3"]
[White "Stormeman100100"]
[Black "chito89"]
[Result "0-1"]
[WhiteElo "2446"]
[BlackElo "2757"]
[TimeControl "180+1"]
[EndTime "10:28:41 PDT"]
[Termination "chito89 won on time"]

1. d4 {[%clk 0:03:00.9]} 1... Nf6 {[%clk 0:02:57.5]} 2. c4 {[%clk 0:02:58.8]}
2... c5 {[%clk 0:02:56.6]} 3. d5 {[%clk 0:02:58.7]} 3... e6 {[%clk 0:02:56.9]}
4. Nc3 {[%clk 0:02:58.2]} 4... exd5 {[%clk 0:02:57.3]} 5. cxd5 {[%clk
0:02:59.1]} 5... d6 {[%clk 0:02:57.8]} 6. e4 {[%clk 0:02:58.8]} 6... g6 {[%clk
0:02:56.9]} 7. Nge2 {[%clk 0:02:59.2]} 7... Bg7 {[%clk 0:02:55.3]} 8. Ng3 {[%clk
0:02:59.3]} 8... O-O {[%clk 0:02:54.6]} 9. Be2 {[%clk 0:02:59]} 9... h5 {[%clk
0:02:54.3]} 10. O-O {[%clk 0:02:57.8]} 10... h4 {[%clk 0:02:52]} 11. Nh1 {[%clk
0:02:57.7]} 11... a6 {[%clk 0:02:49.1]} 12. a4 {[%clk 0:02:56.9]} 12... Nbd7
{[%clk 0:02:31]} 13. Bg5 {[%clk 0:02:52.9]} 13... h3 {[%clk 0:02:29.8]} 14. g4
{[%clk 0:02:43.6]} 14... Qb6 {[%clk 0:02:16.9]} 15. Qd2 {[%clk 0:02:11.2]} 15...
Ne5 {[%clk 0:01:58.6]} 16. f3 {[%clk 0:02:10.1]} 16... Nh7 {[%clk 0:01:42.8]}
17. Be3 {[%clk 0:02:07.5]} 17... f5 {[%clk 0:01:42.8]} 18. gxf5 {[%clk
0:02:06.1]} 18... gxf5 {[%clk 0:01:40]} 19. Ng3 {[%clk 0:02:02.3]} 19... Qb4
{[%clk 0:01:12.1]} 20. Kh1 {[%clk 0:01:33.1]} 20... fxe4 {[%clk 0:00:54.3]} 21.
fxe4 {[%clk 0:01:31.2]} 21... Bg4 {[%clk 0:00:54]} 22. Bxg4 {[%clk 0:01:26.2]}
22... Nxg4 {[%clk 0:00:53.6]} 23. Nf5 {[%clk 0:01:25]} 23... Bxc3 {[%clk
0:00:45.9]} 24. Qd3 {[%clk 0:01:11.9]} 24... Qxb2 {[%clk 0:00:34.1]} 25. Bf2
{[%clk 0:00:42.8]} 25... Rxf5 {[%clk 0:00:19.8]} 26. exf5 {[%clk 0:00:37.5]}
26... Qxf2 {[%clk 0:00:19.1]} 27. Qxh3 {[%clk 0:00:33.9]} 27... Nhf6 {[%clk
0:00:13.6]} 28. Ra3 {[%clk 0:00:25]} 28... Be5 {[%clk 0:00:10.2]} 29. Rg1 {[%clk
0:00:03.3]} 29... Qxf5 {[%clk 0:00:06.8]} 30. Rf3 {[%clk 0:00:01.7]} 30... Qe4
{[%clk 0:00:07]} 0-1

[Event "*** Titled Tuesday Blitz"]
[Site "Chess.com"]
[Date "2020.04.21"]
[Round "3"]
[White "ajdemipopushi"]
[Black "731291"]
[Result "0-1"]
[WhiteElo "2354"]
[BlackElo "2580"]
[TimeControl "180+1"]
[EndTime "10:28:41 PDT"]
[Termination "731291 won on time"]

1. Nf3 {[%clk 0:03:00.9]} 1... c5 {[%clk 0:02:59.7]} 2. g3 {[%clk 0:03:01.3]}
2... Nc6 {[%clk 0:02:59.5]} 3. Bg2 {[%clk 0:03:01.7]} 3... e5 {[%clk 0:02:59.8]}
4. c4 {[%clk 0:03:01.7]} 4... g6 {[%clk 0:02:59.9]} 5. O-O {[%clk 0:03:01.3]}
5... Bg7 {[%clk 0:03:00.1]} 6. Nc3 {[%clk 0:03:01.9]} 6... Nge7 {[%clk
0:03:00.2]} 7. Ne1 {[%clk 0:03:01.9]} 7... O-O {[%clk 0:03:00.3]} 8. Nc2 {[%clk
0:03:02]} 8... d6 {[%clk 0:03:01.2]} 9. Ne3 {[%clk 0:03:00.7]} 9... Be6 {[%clk
0:03:01.6]} 10. d3 {[%clk 0:03:00.4]} 10... Qd7 {[%clk 0:03:01.5]} 11. Ned5
{[%clk 0:02:59.9]} 11... Bh3 {[%clk 0:03:01.5]} 12. Rb1 {[%clk 0:02:58]} 12...
Bxg2 {[%clk 0:03:00.8]} 13. Kxg2 {[%clk 0:02:58]} 13... Nxd5 {[%clk 0:03:01.7]}
14. Nxd5 {[%clk 0:02:57.7]} 14... Ne7 {[%clk 0:03:01.9]} 15. e4 {[%clk
0:02:57.4]} 15... f5 {[%clk 0:03:00.8]} 16. b4 {[%clk 0:02:52.1]} 16... f4
{[%clk 0:02:55.8]} 17. f3 {[%clk 0:02:47]} 17... Nxd5 {[%clk 0:02:52.1]} 18.
exd5 {[%clk 0:02:43.7]} 18... b6 {[%clk 0:02:32.1]} 19. bxc5 {[%clk 0:02:20.2]}
19... bxc5 {[%clk 0:02:32.4]} 20. Re1 {[%clk 0:02:13]} 20... Rab8 {[%clk
0:02:29.4]} 21. Rxb8 {[%clk 0:02:08.2]} 21... Rxb8 {[%clk 0:02:30.3]} 22. gxf4
{[%clk 0:02:07.4]} 22... Qf5 {[%clk 0:02:14.8]} 23. Re4 {[%clk 0:01:42.2]} 23...
exf4 {[%clk 0:01:46.5]} 24. Rxf4 {[%clk 0:01:38.9]} 24... Qh5 {[%clk 0:01:34.6]}
25. Re4 {[%clk 0:01:33.9]} 25... Be5 {[%clk 0:01:33.7]} 26. h4 {[%clk
0:01:17.5]} 26... Qf5 {[%clk 0:01:23.2]} 27. Qe2 {[%clk 0:00:56.4]} 27... Rb1
{[%clk 0:01:22.2]} 28. Qc2 {[%clk 0:00:53.7]} 28... Rb7 {[%clk 0:01:07.1]} 29.
Qe2 {[%clk 0:00:43.5]} 29... Rb1 {[%clk 0:00:55.4]} 30. Be3 {[%clk 0:00:41.6]}
30... Rb2 {[%clk 0:00:49.5]} 31. Bd2 {[%clk 0:00:41.3]} 31... Kg7 {[%clk
0:00:25.8]} 32. a4 {[%clk 0:00:19.5]} 32... a6 {[%clk 0:00:24]} 33. a5 {[%clk
0:00:18.5]} 33... Ra2 {[%clk 0:00:24.2]} 34. Qf2 {[%clk 0:00:08]} 34... Kf7
{[%clk 0:00:20.7]} 35. Qe2 {[%clk 0:00:06.9]} 35... Qf6 {[%clk 0:00:19.1]} 0-1

[Event "*** Titled Tuesday Blitz"]
[Site "Chess.com"]
[Date "2020.04.21"]
[Round "3"]
[White "BasilSmash"]
[Black "MikaelyanArman"]
[Result "0-1"]
[WhiteElo "2439"]
[BlackElo "2742"]
[TimeControl "180+1"]
[EndTime "10:28:42 PDT"]
[Termination "MikaelyanArman won on time"]

1. d4 {[%clk 0:02:59.5]} 1... d5 {[%clk 0:02:59.6]} 2. Nf3 {[%clk 0:02:58.7]}
2... Nf6 {[%clk 0:02:59.4]} 3. g3 {[%clk 0:02:58.9]} 3... Bf5 {[%clk 0:02:58.1]}
4. Bg2 {[%clk 0:02:55.9]} 4... c6 {[%clk 0:02:53.5]} 5. c4 {[%clk 0:02:55.6]}
5... dxc4 {[%clk 0:02:47]} 6. Ne5 {[%clk 0:02:52]} 6... Nbd7 {[%clk 0:02:41.9]}
7. Nxc4 {[%clk 0:02:51.1]} 7... e6 {[%clk 0:02:38.5]} 8. O-O {[%clk 0:02:48]}
8... Nb6 {[%clk 0:02:36.1]} 9. Na5 {[%clk 0:02:40.6]} 9... Qd7 {[%clk
0:02:24.1]} 10. Nc3 {[%clk 0:02:35.9]} 10... Bb4 {[%clk 0:02:19.1]} 11. Nb3
{[%clk 0:02:34.3]} 11... O-O {[%clk 0:02:16.5]} 12. a3 {[%clk 0:02:32]} 12...
Be7 {[%clk 0:02:10]} 13. e4 {[%clk 0:02:08.1]} 13... Bg6 {[%clk 0:02:09.8]} 14.
Qe2 {[%clk 0:02:07.4]} 14... Rfd8 {[%clk 0:02:00.2]} 15. Rd1 {[%clk 0:02:05.2]}
15... Bh5 {[%clk 0:01:54.8]} 16. f3 {[%clk 0:02:00.7]} 16... Qc8 {[%clk
0:01:54.8]} 17. Be3 {[%clk 0:01:58.6]} 17... Ne8 {[%clk 0:01:45.6]} 18. Nc5
{[%clk 0:01:54.4]} 18... Nd6 {[%clk 0:01:43.3]} 19. b3 {[%clk 0:01:44.3]} 19...
Nd7 {[%clk 0:01:42.1]} 20. Rac1 {[%clk 0:01:36.1]} 20... Nb6 {[%clk 0:01:28.3]}
21. Qf2 {[%clk 0:01:25.4]} 21... Bg6 {[%clk 0:01:25.9]} 22. h4 {[%clk
0:01:17.1]} 22... h6 {[%clk 0:01:25.4]} 23. Bh3 {[%clk 0:01:16.2]} 23... Nd7
{[%clk 0:01:19.6]} 24. Kh2 {[%clk 0:01:07.6]} 24... b6 {[%clk 0:01:18.7]} 25.
Nd3 {[%clk 0:01:01.4]} 25... Qb7 {[%clk 0:01:15.9]} 26. Ne5 {[%clk 0:00:34.5]}
26... Bh7 {[%clk 0:01:08.7]} 27. Nd3 {[%clk 0:00:27.2]} 27... Rac8 {[%clk
0:01:03.1]} 28. a4 {[%clk 0:00:26.4]} 28... a5 {[%clk 0:01:02.7]} 29. Ne2 {[%clk
0:00:21.1]} 29... Ne8 {[%clk 0:00:55.3]} 30. Nef4 {[%clk 0:00:20.1]} 30... Nc7
{[%clk 0:00:55.2]} 31. Nh5 {[%clk 0:00:13.2]} 31... Bf8 {[%clk 0:00:53]} 32. g4
{[%clk 0:00:12.2]} 32... Bg6 {[%clk 0:00:52.6]} 33. Ng3 {[%clk 0:00:11.9]} 33...
Na6 {[%clk 0:00:50]} 34. f4 {[%clk 0:00:06.7]} 34... c5 {[%clk 0:00:45.5]} 35.
f5 {[%clk 0:00:05.6]} 35... Bh7 {[%clk 0:00:45.9]} 36. Nf4 {[%clk 0:00:01.9]}
36... cxd4 {[%clk 0:00:42]} 37. Bd2 {[%clk 0:00:02.1]} 37... Ndc5 {[%clk
0:00:37.1]} 38. Nfh5 {[%clk 0:00:01.3]} 38... Nd3 {[%clk 0:00:34.5]} 0-1